[Event "VII Totalizator Sportowy 2022"]
[Site "Bydgoszcz"]
[Date "2022.07.04"]
[Round "10.11"]
[White "Ulasevich, Sergei"]
[Black "Kowalski, Igor"]
[Result "1-0"]
[ECO "B13"]
[WhiteElo "2217"]
[BlackElo "2370"]
[Annotator "TA"]
[PlyCount "121"]
[EventDate "2022.06.25"]
[EventType "swiss"]
[EventCountry "POL"]
[SourceTitle "playchess.com"]
[Source "ChessBase"]
[SourceQuality "1"]
[TimeControl "40/5400+30:1800+30"]

{[%evp 19,121,26,28,29,30,18,22,12,12,17,28,32,45,35,30,37,49,54,50,21,67,64,62,61,152,0,0,0,7,0,0,0,104,89,112,112,117,113,86,0,0,10,25,0,59,67,67,58,61,40,37,18,87,37,133,98,225,222,208,172,358,366,709,139,329,333,318,318,227,222,266,257,259,249,237,87,216,49,49,50,50,40,80,67,63,70,105,105,4840,4013,1170,14,14,14,29962,29963,29959,29959,12641,12435,6939,5057,29959,8807]} 1. e4 {[%emt 0:00:04]} c6 {[%emt 0:00:03]} 2. d4 {[%emt 0:00:29]} d5 {[%emt 0:00:04]} 3. exd5 {[%emt 0:00:05]} cxd5 {[%emt 0:00:03]} 4. Bd3 {[%emt 0:00:03]} Nc6 {[%emt 0:00:05]} 5. c3 {[%emt 0:00:06]} Nf6 {[%emt 0:00:04]} 6. Bf4 {[%emt 0:00:06]} Bg4 {[%emt 0:00:45]} 7. Qb3 {[%emt 0:00:05]} Qd7 {[%emt 0:00:11]} 8. Nd2 {[%emt 0:00:07]} e6 {[%emt 0:00:21]} 9. Ngf3 {[%emt 0:00:12]} Bd6 {[%emt 0:00:24]} 10. Bxd6 {[%emt 0:00:09]} Qxd6 {[%emt 0:00:05]} 11. O-O {[%emt 0:00:06] B13: Caro-Kann: Exchange Variation and Panov-Botvinnik Attack.} O-O {[%emt 0:00:05]} 12. Rae1 {[%emt 0:00:08]} Nd7 {[%emt 0:10:29]} 13. Re3 {[%emt 0:08:02] The position is equal.} Rab8 {[%emt 0:04:28]} 14. Rfe1 {[%emt 0:02:15]} Bh5 {[%emt 0:10:32] [#]} 15. Qc2 $146 {[%emt 0:13:24]} ({Predecessor:} 15. Ne5 Ndxe5 16. dxe5 Qc7 17. Bxh7+ Kxh7 18. Rh3 g6 19. g4 Nxe5 20. gxh5 g5 21. Nf3 Nxf3+ 22. Rxf3 {1-0 (33) Kreyssig,B (1881)-Jacobsen,M (2113) Berlin 2014}) 15... Bg6 {[%emt 0:00:26]} 16. Bxg6 {[%emt 0:00:32]} hxg6 {[%emt 0:00:06]} 17. Ne5 {[%emt 0:06:31]} (17. Ng5 {keeps more tension.} b5 18. Ndf3 Qf4 19. Qe2) 17... Ndxe5 {[%emt 0:12:26]} 18. dxe5 {[%emt 0:00:16]} Qc7 {[%emt 0:00:03]} 19. Qa4 {[%emt 0:09:31]} Ne7 {[%emt 0:03:36]} (19... b5 $11 {deserves consideration.} 20. Qf4 b4) 20. Rh3 $14 {[%emt 0:18:17]} (20. Qxa7 $2 Ra8 21. Qd4 Nf5 $19) 20... Nf5 {[%emt 0:01:36] Inhibits Qh4.} 21. g4 $36 {[%emt 0:00:11][%mdl 2048] Black is under pressure.} (21. Qxa7 $2 Ra8 22. Qxa8 Rxa8 $19) 21... Ne7 {[%emt 0:04:23]} (21... Nh6 $14) 22. g5 $2 {[%emt 0:02:08] White is much more active.} (22. Qxa7 $16 {Hoping for Qe3.} Ra8 23. Qe3) 22... Nf5 $11 {[%emt 0:00:55]} 23. Qg4 {[%emt 0:00:06]} Rfc8 {[%emt 0:03:52]} 24. Nb3 {[%emt 0:09:59][%cal Bd2b3,Bb3d4,Bd4f5][%mdl 32]} Qb6 {[%emt 0:14:27] And now ...Rc4 would win.} 25. Nd4 $1 {[%emt 0:00:23]} Kf8 {[%emt 0:02:15]} (25... Qxb2 $2 26. Nxf5 gxf5 27. Qh4 $18) (25... Nxd4 $1 $11 26. cxd4 Kf8) 26. Nxf5 $1 $16 {[%emt 0:01:27]} (26. Rh8+ Ke7 27. Nxf5+ gxf5 28. Rxc8 fxg4 $17) 26... gxf5 {[%emt 0:01:13]} 27. Qh4 {[%emt 0:00:24]} Ke7 {[%emt 0:09:54] Threatens to win with ...Rc4.} 28. g6+ $1 {[%emt 0:01:15]} Kd7 {[%emt 0:00:04]} 29. gxf7 {[%emt 0:02:38]} (29. Qh7 $16) 29... Rc4 $1 $11 {[%emt 0:00:05]} 30. Qh7 {[%emt 0:03:38] Black must now prevent Qg8. Really sharp!} (30. Qg3 $2 Rg4 31. Re2 Ke7 $19) 30... Rf8 {[%emt 0:00:23]} 31. Rg3 {[%emt 0:03:18]} (31. b3 $5 {[%cal Rb3c4]} Rf4 32. Ree3 $14) 31... Rxf7 {[%emt 0:00:16]} (31... Qxb2 $11 32. Qxg7 Qa3) 32. Qg8 $14 {[%emt 0:00:41]} Re7 {[%emt 0:00:12] aiming for ...Rc8.} 33. Rxg7 {[%emt 0:01:04]} Rxg7+ {[%emt 0:00:05]} 34. Qxg7+ {[%emt 0:00:04][%mdl 4096] Endgame KQR-KQR} Kc6 {[%emt 0:00:03]} 35. Qe7 {[%emt 0:03:05]} Kb5 {[%emt 0:00:57]} (35... Rg4+ $11 {remains equal.} 36. Kf1 Qb5+ 37. Re2 Qd3) 36. Qd7+ {[%emt 0:12:35]} (36. Re3 $16) 36... Ka6 {[%emt 0:00:42]} ({Black should play} 36... Qc6 $14 37. Qxc6+ bxc6) 37. Re3 {[%emt 0:01:15][%cal Oh2h4]} (37. Qd6 Rg4+ 38. Kf1 Ka5 $16) 37... f4 {[%emt 0:03:50]} (37... Rc6 $16 {might work better.}) 38. Rd3 $1 $18 {[%emt 0:00:41]} Qxb2 {[%emt 0:07:34]} 39. Qxe6+ {[%emt 0:00:26]} Rc6 $2 {[%emt 0:00:09]} (39... b6 40. Qxd5 (40. Kg2 Qe2 $11) 40... Rc5) 40. Qxd5 {[%emt 0:00:00]} Qe2 $2 {[%emt 0:00:00]} (40... Rg6+ $2 41. Kf1 $18) (40... Rc7 41. Kg2 b6) 41. e6 $2 {[%emt 0:09:12]} (41. c4 $1 $18 {[%csl Gc4][%cal Rd5b5] and the rest is easy.} Rg6+ 42. Rg3 $3 {[%mdl 512]} Rxg3+ 43. hxg3 (43. fxg3 Qe1+ 44. Kg2 Qe2+ 45. Kh3 Qh5+ 46. Kg2 Qe2+ 47. Kg1 Qe1+ 48. Kg2 Qe2+ $11)) 41... Qxe6 $2 {[%emt 0:03:53]} (41... Rxe6 $2 42. Qc4+ b5 43. Rd6+ $3 {[%mdl 512]} Rxd6 44. Qxe2 $18) (41... Qg4+ $16 {keeps fighting.} 42. Kf1 Rxe6) 42. c4 {[%emt 0:05:21][%csl Gc4][%cal Rd5b5]} ({Less strong is} 42. Qxe6 Rxe6 43. h4 Rg6+ 44. Kh2 Kb5 $18) 42... b6 {[%emt 0:06:20]} 43. Qxe6 {[%emt 0:02:00]} Rxe6 {[%emt 0:00:01] KR-KR} 44. Kg2 {[%emt 0:00:11]} Rg6+ {[%emt 0:00:19]} 45. Kf3 {[%emt 0:00:09]} Rh6 {[%emt 0:00:02]} 46. Kxf4 {[%emt 0:00:32]} Rxh2 {[%emt 0:00:04]} 47. Ke3 {[%emt 0:05:22]} (47. Kg3 $18 {and White stays clearly on top.} Rh1 48. f4) 47... Ka5 $16 {[%emt 0:01:18] [#]} 48. Ra3+ $2 {[%emt 0:00:51]} (48. a3 $1 $18) 48... Kb4 $14 {[%emt 0:00:04]} 49. Rxa7 {[%emt 0:00:05]} Kxc4 {[%emt 0:00:02]} 50. f3 {[%emt 0:00:46][%cal Bf2f3,Bf3f4,Bf4f5][%mdl 32]} b5 {[%emt 0:00:23]} 51. Ke4 {[%emt 0:00:42]} Re2+ {[%emt 0:00:09]} 52. Kf5 $1 {[%emt 0:00:16]} b4 {[%emt 0:00:07]} 53. f4 {[%emt 0:00:32] Strongly threatening Ra5.} Kc3 $2 {[%emt 0:00:31][%mdl 8192]} (53... Kb5 $16) 54. Kg6 $18 {[%emt 0:02:09]} Rg2+ {[%emt 0:00:12]} 55. Kh5 $2 {[%emt 0:00:30]} (55. Kf6 $18 {f5 is the strong threat.} Kd4 56. Ra5) 55... Kd4 $1 $11 {[%emt 0:01:06]} 56. Ra5 {[%emt 0:01:34]} Ke4 $2 {[%emt 0:04:42][%mdl 8192]} (56... Rg1 $11) 57. f5 {[%emt 0:00:09]} Rf2 {[%emt 0:00:05]} 58. Kg6 {[%emt 0:00:11]} Rg2+ {[%emt 0:00:08]} 59. Kf7 {[%emt 0:00:44] White threatens f6 and mate.} Rg5 {[%emt 0:01:04]} 60. Kf6 {[%emt 0:00:06]} Rh5 {[%emt 0:00:05]} 61. Kg6 {[%emt 0:00:11] Weighted Error Value: White=0.40/Black=0.57} 1-0

[Event "VII Totalizator Sportowy 2022"]
[Site "Bydgoszcz"]
[Date "2022.07.04"]
[Round "10.12"]
[White "Rudzinska, Michalina"]
[Black "Laux, Dominik"]
[Result "1-0"]
[ECO "B11"]
[WhiteElo "2236"]
[BlackElo "2263"]
[Annotator "TA"]
[PlyCount "83"]
[EventDate "2022.06.25"]
[EventType "swiss"]
[EventCountry "POL"]
[SourceTitle "playchess.com"]
[Source "ChessBase"]
[SourceQuality "1"]
[TimeControl "40/5400+30:1800+30"]

{[%evp 10,83,25,14,36,20,39,36,36,37,46,45,50,35,50,20,34,34,34,8,40,0,0,-32,43,23,71,64,82,69,70,72,105,108,111,92,142,114,118,124,115,101,102,106,108,108,108,108,108,108,108,69,79,79,112,76,78,78,79,60,447,457,451,441,444,430,405,419,29990,29991,29991,29992,29992,106,29993,29994]} 1. e4 {[%emt 0:03:40]} c6 {[%emt 0:00:19]} 2. Nf3 {[%emt 0:00:10]} d5 {[%emt 0:00:06]} 3. Nc3 {[%emt 0:00:07]} Bg4 {[%emt 0:00:57]} 4. h3 {[%emt 0:00:11]} Bxf3 {[%emt 0:00:06]} 5. Qxf3 {[%emt 0:00:08]} e6 {[%emt 0:00:05]} 6. Be2 {[%emt 0:00:23]} Be7 {[%emt 0:04:00] B11: Caro-Kann: Two Knights Variation.} 7. O-O {[%emt 0:01:22]} d4 {[%emt 0:00:39]} 8. Nb1 {[%emt 0:00:32][%cal Bc3b1,Bb1d2,Bd2f3][%mdl 32]} Nf6 {[%emt 0:00:19] White is slightly better.} 9. d3 {[%emt 0:00:59] [#]} O-O $146 {[%emt 0:02:09]} ({Predecessor:} 9... Qc7 10. a4 Nbd7 11. c3 Nc5 12. Nd2 Rd8 13. Nc4 b5 14. Bf4 Qb7 15. axb5 cxb5 {1-0 (81) Saric,I (2644)-Suleymanli,A (2541) Riga 2021}) 10. Qg3 {[%emt 0:01:59]} Kh8 {[%emt 0:08:52]} 11. Nd2 {[%emt 0:06:39]} c5 {[%emt 0:02:46]} 12. f4 {[%emt 0:03:24]} Qc7 {[%emt 0:05:02]} 13. Nf3 {[%emt 0:08:03]} Nc6 {[%emt 0:01:13]} 14. Qf2 {[%emt 0:08:55]} Nd7 {[%emt 0:17:43]} 15. c3 {[%emt 0:10:28]} Rad8 {[%emt 0:07:49]} 16. Bd2 {[%emt 0:06:34][%cal Rc3d4]} f5 {[%emt 0:10:50]} ({Black should try} 16... dxc3 $15 17. bxc3 a6) 17. e5 $14 {[%emt 0:10:54][%cal Rc3d4]} b5 {[%emt 0:04:18]} (17... g5 $11) 18. cxd4 $16 {[%emt 0:02:55] Threatens to win with Rfc1.} cxd4 {[%emt 0:03:08]} 19. Rfc1 {[%emt 0:00:16]} ({Don't blunder} 19. Nxd4 $2 Nxd4 20. Rac1 (20. Qxd4 $2 Bc5 $19) 20... Nxe2+ 21. Qxe2 Qb7 $19) 19... Qb6 {[%emt 0:02:05]} 20. Rc2 {[%emt 0:01:21]} Ndb8 {[%emt 0:12:08]} 21. Rac1 {[%emt 0:02:46]} a5 {[%emt 0:00:45]} 22. h4 {[%emt 0:02:27]} Rc8 {[%emt 0:05:39]} ({Black should play} 22... Bb4) 23. Ng5 {[%emt 0:03:44]} Bxg5 {[%emt 0:02:06]} 24. hxg5 {[%emt 0:00:11]} ({Much weaker is} 24. fxg5 $6 Ne7 $14) 24... Ne7 {[%emt 0:00:59]} 25. Rxc8 {[%emt 0:00:43]} Rxc8 {[%emt 0:00:05]} 26. Rxc8+ {[%emt 0:00:11]} Nxc8 {[%emt 0:00:03]} 27. Bf3 {[%emt 0:09:11]} Ne7 {[%emt 0:02:09]} 28. Qe1 {[%emt 0:01:21]} Nbc6 {[%emt 0:00:51]} 29. Qc1 {[%emt 0:00:37] Against Qc5} Kg8 {[%emt 0:01:14]} 30. Kf2 {[%emt 0:02:26]} Nb4 {[%emt 0:02:57]} 31. Bxb4 axb4 {[%emt 0:00:02][%mdl 4096] Endgame KQB-KQN} 32. g4 {[%emt 0:04:22] White is more active.} fxg4 {[%emt 0:03:06]} 33. Bxg4 {[%emt 0:00:08]} Kf7 {[%emt 0:00:38]} 34. Kg3 {[%emt 0:04:19]} Nf5+ $2 {[%emt 0:01:46][%mdl 8192]} (34... Qa5 $14) 35. Bxf5 $18 {[%emt 0:00:34]} exf5 {[%emt 0:00:01] KQ-KQ} 36. Qc8 {[%emt 0:00:29] [#] Threatening mate with Qd7+.} Qe6 {[%emt 0:00:57] Prevents Qd7+.} 37. Qb7+ {[%emt 0:03:01]} Kg6 {[%emt 0:00:01]} 38. Qxb5 {[%emt 0:00:38]} Qxa2 {[%emt 0:00:57]} (38... h6 $18 39. gxh6 gxh6 40. Qxb4 Qxa2) 39. Qe8+ {[%emt 0:00:38]} Qf7 {[%emt 0:00:08]} 40. Qc6+ {[%emt 0:00:00]} Kh5 {[%emt 0:00:00]} 41. Qf3+ {[%emt 0:00:19]} Kg6 {[%emt 0:00:37] [#]} 42. Kh4 $1 {[%emt 0:00:06] Weighted Error Value: White=0.10 (very precise) /Black=0.61} 1-0

[Event "VII Totalizator Sportowy 2022"]
[Site "Bydgoszcz"]
[Date "2022.07.04"]
[Round "10.13"]
[White "Paprocki, Antoni"]
[Black "Dzhuguryan, Tygran"]
[Result "1/2-1/2"]
[ECO "B11"]
[WhiteElo "1851"]
[BlackElo "2203"]
[Annotator "RC"]
[PlyCount "100"]
[EventDate "2022.06.25"]
[EventType "swiss"]
[EventCountry "POL"]
[SourceTitle "playchess.com"]
[Source "ChessBase"]
[SourceQuality "1"]
[TimeControl "40/5400+30:1800+30"]

1. e4 {[%emt 0:00:04]} c6 {[%emt 0:00:07]} 2. Nf3 {[%emt 0:00:13]} d5 {[%emt 0:00:06]} 3. Nc3 {[%emt 0:00:04]} Bg4 {[%emt 0:00:09]} 4. h3 {[%emt 0:00:05]} Bxf3 {[%emt 0:00:03]} 5. Qxf3 {[%emt 0:00:06]} e6 {[%emt 0:00:16]} 6. Be2 {[%emt 0:00:07]} Nd7 {[%emt 0:05:55]} 7. d4 {[%emt 0:01:39]} Qb6 {[%emt 0:02:40]} 8. Qe3 {[%emt 0:09:16]} dxe4 {[%emt 0:01:37]} 9. Nxe4 {[%emt 0:00:50]} Ngf6 {[%emt 0:00:03]} 10. O-O {[%emt 0:01:04]} Nxe4 {[%emt 0:04:20]} 11. Qxe4 {[%emt 0:00:06]} Nf6 {[%emt 0:00:05]} 12. Qd3 {[%emt 0:05:38]} Rd8 {[%emt 0:04:12]} 13. Rd1 {[%emt 0:02:19]} Be7 {[%emt 0:00:48]} 14. Bf4 {[%emt 0:13:44]} O-O {[%emt 0:01:14]} 15. c4 {[%emt 0:02:00]} Rd7 {[%emt 0:02:33]} 16. b3 {[%emt 0:09:52]} a5 {[%emt 0:13:17]} 17. a3 {[%emt 0:07:32]} Rfd8 {[%emt 0:07:50]} 18. Be5 {[%emt 0:07:00]} c5 {[%emt 0:08:16]} 19. dxc5 {[%emt 0:00:34]} Qxc5 {[%emt 0:01:06]} 20. Qg3 {[%emt 0:00:10]} Rxd1+ {[%emt 0:00:36]} 21. Rxd1 {[%emt 0:00:23]} Rxd1+ {[%emt 0:06:04]} 22. Bxd1 {[%emt 0:00:02]} Qxa3 {[%emt 0:01:35]} 23. Bxf6 {[%emt 0:00:25]} Bxf6 {[%emt 0:00:02]} 24. Qb8+ {[%emt 0:00:10]} Qf8 {[%emt 0:00:04]} 25. Qxb7 {[%emt 0:00:05]} Be7 {[%emt 0:00:24]} 26. Qc7 {[%emt 0:02:33]} Bb4 {[%emt 0:00:08]} 27. Bf3 {[%emt 0:00:36]} g6 {[%emt 0:00:57]} 28. Be4 {[%emt 0:02:42]} h5 {[%emt 0:00:15]} 29. g3 {[%emt 0:03:01]} Qg7 {[%emt 0:00:47]} 30. Qd8+ {[%emt 0:03:17]} Kh7 {[%emt 0:01:39]} 31. Qd1 {[%emt 0:00:44]} Qe5 {[%emt 0:00:22]} 32. Qf3 {[%emt 0:00:12]} Kg7 {[%emt 0:00:08]} 33. h4 {[%emt 0:00:35]} Bc5 {[%emt 0:00:30]} 34. Kg2 {[%emt 0:00:57]} Qd4 {[%emt 0:00:57]} 35. Bc6 {[%emt 0:01:07]} e5 {[%emt 0:04:59]} 36. Be8 {[%emt 0:03:52]} f5 {[%emt 0:00:03]} 37. Qb7+ {[%emt 0:00:23]} Kh6 {[%emt 0:00:04]} 38. Qf3 {[%emt 0:00:06]} Qd2 {[%emt 0:02:32]} 39. Bb5 {[%emt 0:03:58]} Qd4 {[%emt 0:05:34]} 40. Be8 {[%emt 0:00:00]} Qb2 {[%emt 0:00:00]} 41. Ba4 {[%emt 0:04:50]} Qd4 {[%emt 0:12:56]} 42. Be8 {[%emt 0:00:39]} Bb6 {[%emt 0:03:30]} 43. Bb5 {[%emt 0:01:11]} Qc5 {[%emt 0:02:04]} 44. Ba4 {[%emt 0:01:08]} e4 {[%emt 0:00:53]} 45. Qf4+ {[%emt 0:00:24]} Kg7 {[%emt 0:00:03]} 46. Qd2 {[%emt 0:00:40]} Kf6 {[%emt 0:01:42]} 47. Qg5+ {[%emt 0:01:35]} Kf7 {[%emt 0:00:14]} 48. Qd2 {[%emt 0:00:30]} Qd4 {[%emt 0:06:26]} 49. Qxd4 {[%emt 0:00:30]} Bxd4 {[%emt 0:00:02]} 50. f4 {[%emt 0:03:00]} Ke7 {[%emt 0:01:13]} 1/2-1/2

[Event "VII Totalizator Sportowy 2022"]
[Site "Bydgoszcz"]
[Date "2022.07.04"]
[Round "10.14"]
[White "Zebracki, Tomasz"]
[Black "Syrkiewicz, Michal"]
[Result "1/2-1/2"]
[ECO "E30"]
[WhiteElo "2200"]
[BlackElo "2000"]
[Annotator "RC"]
[PlyCount "55"]
[EventDate "2022.06.25"]
[EventType "swiss"]
[EventCountry "POL"]
[SourceTitle "playchess.com"]
[Source "ChessBase"]
[SourceQuality "1"]
[TimeControl "40/5400+30:1800+30"]

1. d4 {[%emt 0:00:02]} Nf6 {[%emt 0:00:07]} 2. c4 {[%emt 0:01:47]} e6 {[%emt 0:00:06]} 3. Nc3 {[%emt 0:00:42]} Bb4 {[%emt 0:00:11]} 4. Bg5 {[%emt 0:03:08]} Bxc3+ {[%emt 0:05:35]} 5. bxc3 {[%emt 0:00:06]} d5 {[%emt 0:00:06]} 6. cxd5 {[%emt 0:03:04]} exd5 {[%emt 0:01:45]} 7. e3 {[%emt 0:00:36]} O-O {[%emt 0:01:58]} 8. Bd3 {[%emt 0:00:11]} Nbd7 {[%emt 0:03:58]} 9. Nf3 {[%emt 0:03:07]} Re8 {[%emt 0:01:54]} 10. O-O {[%emt 0:00:43]} h6 {[%emt 0:01:06]} 11. Bh4 {[%emt 0:00:24]} b6 {[%emt 0:03:44]} 12. Bb5 {[%emt 0:09:21]} Re6 {[%emt 0:06:32]} 13. c4 {[%emt 0:02:42]} Bb7 {[%emt 0:08:33]} 14. Rc1 {[%emt 0:02:15]} Rc8 {[%emt 0:07:24]} 15. cxd5 {[%emt 0:05:14]} Bxd5 {[%emt 0:02:07]} 16. Re1 {[%emt 0:00:52]} c5 {[%emt 0:12:20]} 17. Ba6 {[%emt 0:18:54]} Ra8 {[%emt 0:02:19]} 18. Bd3 {[%emt 0:08:52]} g5 {[%emt 0:08:20]} 19. Bg3 {[%emt 0:10:09]} Ne4 {[%emt 0:01:09]} 20. Nd2 {[%emt 0:05:26]} Nxg3 {[%emt 0:03:38]} 21. hxg3 {[%emt 0:00:01]} cxd4 {[%emt 0:00:06]} 22. exd4 {[%emt 0:01:12]} Nf6 {[%emt 0:02:55]} 23. Qa4 {[%emt 0:02:16]} Rc8 {[%emt 0:02:07]} 24. Bf5 {[%emt 0:01:41]} Rxe1+ {[%emt 0:02:28]} 25. Rxe1 {[%emt 0:00:01]} Rc7 {[%emt 0:01:21]} 26. Nf3 {[%emt 0:02:38]} Bc6 {[%emt 0:01:36]} 27. Qd1 {[%emt 0:00:19]} Bd5 {[%emt 0:04:37]} 28. Qa4 1/2-1/2

[Event "VII Totalizator Sportowy 2022"]
[Site "Bydgoszcz"]
[Date "2022.07.04"]
[Round "10.15"]
[White "Kacprzak, Karol"]
[Black "Kacprzak, Kacper"]
[Result "1/2-1/2"]
[ECO "A57"]
[WhiteElo "2200"]
[BlackElo "2238"]
[Annotator "TA"]
[PlyCount "39"]
[EventDate "2022.06.25"]
[EventType "swiss"]
[EventCountry "POL"]
[SourceTitle "playchess.com"]
[Source "ChessBase"]
[SourceQuality "1"]
[TimeControl "40/5400+30:1800+30"]

{[%evp 22,23,31,35]} 1. d4 {[%emt 0:00:03]} Nf6 {[%emt 0:01:02]} 2. c4 {[%emt 0:00:27]} c5 {[%emt 0:01:05]} 3. d5 {[%emt 0:00:14]} b5 {[%emt 0:00:06]} 4. cxb5 {[%emt 0:00:42]} a6 {[%emt 0:00:05]} 5. b6 {[%emt 0:01:34]} Qxb6 {[%emt 0:00:34]} 6. Nc3 {[%emt 0:00:20]} g6 {[%emt 0:00:37]} 7. e4 {[%emt 0:00:17]} d6 {[%emt 0:00:07]} 8. Nf3 {[%emt 0:00:10][%cal Bg1f3,Bf3d2,Bd2c4][%mdl 32]} Bg7 {[%emt 0:00:07]} 9. Be2 {[%emt 0:00:14]} O-O {[%emt 0:00:11]} 10. Nd2 {[%emt 0:00:07]} Qc7 {[%emt 0:00:26]} 11. O-O {[%emt 0:00:12]} Nbd7 {[%emt 0:01:12]} 12. Nc4 {[%emt 0:00:09] [#]} {Predecessor:} Nb6 $146 {A57: Benko/Volga Gambit.} 13. Nxb6 Qxb6 14. Qc2 Bg4 15. f3 Bd7 16. Be3 Rfc8 17. b3 Rab8 18. Rab1 Qa5 19. Na4 Bb5 20. Bd2 {0-1 (46) Danilov,V (2378)-Tukhaev,A (2534) Abu Dhabi 2021} 1/2-1/2

[Event "VII Totalizator Sportowy 2022"]
[Site "Bydgoszcz"]
[Date "2022.07.04"]
[Round "10.16"]
[White "Stolarczyk, Adam"]
[Black "Paprocki, Jaroslaw"]
[Result "0-1"]
[ECO "A40"]
[WhiteElo "2125"]
[BlackElo "2165"]
[Annotator "RC"]
[PlyCount "160"]
[EventDate "2022.06.25"]
[EventType "swiss"]
[EventCountry "POL"]
[SourceTitle "playchess.com"]
[Source "ChessBase"]
[SourceQuality "1"]
[TimeControl "40/5400+30:1800+30"]

1. d4 {[%emt 0:00:05]} e6 {[%emt 0:01:16]} 2. Nf3 {[%emt 0:00:20]} c5 {[%emt 0:00:20]} 3. e3 {[%emt 0:00:35]} d5 {[%emt 0:00:43]} 4. c3 {[%emt 0:00:43]} Nf6 {[%emt 0:00:26]} 5. Nbd2 {[%emt 0:00:26]} Nbd7 {[%emt 0:00:38]} 6. Bd3 {[%emt 0:00:41]} Bd6 {[%emt 0:00:27]} 7. O-O {[%emt 0:00:23]} e5 {[%emt 0:04:39]} 8. e4 {[%emt 0:02:55]} dxe4 {[%emt 0:02:43]} 9. Nxe4 {[%emt 0:00:52]} Nxe4 {[%emt 0:00:19]} 10. Bxe4 {[%emt 0:00:08]} exd4 {[%emt 0:00:40]} 11. cxd4 {[%emt 0:00:14]} O-O {[%emt 0:00:37]} 12. Be3 {[%emt 0:04:06]} cxd4 {[%emt 0:00:53]} 13. Bxd4 {[%emt 0:00:27]} Nf6 {[%emt 0:00:13]} 14. Bc2 {[%emt 0:02:53]} Bg4 {[%emt 0:01:38]} 15. Qd3 {[%emt 0:03:33]} g6 {[%emt 0:00:09]} 16. Rfd1 {[%emt 0:02:33]} Nd5 {[%emt 0:03:28]} 17. Bg7 {[%emt 0:18:21]} Kxg7 {[%emt 0:03:07]} 18. Qxd5 {[%emt 0:00:21]} Bxf3 {[%emt 0:01:39]} 19. Qxf3 {[%emt 0:00:55]} Bxh2+ {[%emt 0:01:33]} 20. Kxh2 {[%emt 0:00:16]} Qc7+ {[%emt 0:00:12]} 21. Kg1 {[%emt 0:01:24]} Qxc2 {[%emt 0:00:10]} 22. Qxb7 {[%emt 0:00:23]} Rfb8 {[%emt 0:01:23]} 23. Qd5 {[%emt 0:00:39]} Qxb2 {[%emt 0:00:58]} 24. Qd4+ {[%emt 0:00:36]} Qxd4 {[%emt 0:00:08]} 25. Rxd4 {[%emt 0:00:12]} a5 {[%emt 0:00:34]} 26. Ra4 {[%emt 0:01:12]} Rb5 {[%emt 0:00:28]} 27. Re1 {[%emt 0:04:22]} Rc8 {[%emt 0:04:27]} 28. Re2 {[%emt 0:02:05]} Rc1+ {[%emt 0:02:21]} 29. Kh2 {[%emt 0:00:13]} h5 {[%emt 0:00:41]} 30. f4 {[%emt 0:07:01]} h4 {[%emt 0:03:10]} 31. g3 {[%emt 0:05:57]} hxg3+ {[%emt 0:10:26]} 32. Kxg3 {[%emt 0:00:13]} Rg1+ {[%emt 0:00:54]} 33. Kf2 {[%emt 0:03:48]} Rg4 {[%emt 0:00:25]} 34. Kf3 {[%emt 0:00:38]} Rh4 {[%emt 0:00:49]} 35. Rg2 {[%emt 0:03:03]} Rc5 {[%emt 0:01:47]} 36. Ra3 {[%emt 0:05:21]} Rf5 {[%emt 0:09:46]} 37. Rg4 {[%emt 0:01:51]} Rh3+ {[%emt 0:00:08]} 38. Rg3 {[%emt 0:00:12]} Rh1 {[%emt 0:00:14]} 39. Ra4 {[%emt 0:02:52]} Rf1+ {[%emt 0:01:07]} 40. Kg4 {[%emt 0:00:00]} Rh5 {[%emt 0:00:00]} 41. Rf3 {[%emt 0:06:02]} Rg1+ {[%emt 0:04:16]} 42. Rg3 {[%emt 0:00:09]} Rc1 {[%emt 0:03:07]} 43. Rga3 {[%emt 0:01:05]} Rcc5 {[%emt 0:00:24]} 44. Kg3 {[%emt 0:00:17]} Rhf5 {[%emt 0:01:36]} 45. Kg4 {[%emt 0:02:04]} Kf6 {[%emt 0:02:15]} 46. Re3 {[%emt 0:01:30]} Rb5 {[%emt 0:00:39]} 47. Rd4 {[%emt 0:03:37]} Rb6 {[%emt 0:05:08]} 48. Ra4 {[%emt 0:00:38]} Rb1 {[%emt 0:01:18]} 49. Rc4 {[%emt 0:02:10]} Rg1+ {[%emt 0:00:50]} 50. Rg3 {[%emt 0:01:02]} Rf1 {[%emt 0:00:17]} 51. Rf3 {[%emt 0:01:20]} Rxf3 {[%emt 0:00:21]} 52. Kxf3 {[%emt 0:00:07]} g5 {[%emt 0:00:32]} 53. Rc6+ {[%emt 0:00:10]} Ke7 {[%emt 0:01:02]} 54. Kg4 {[%emt 0:00:09]} Rxf4+ {[%emt 0:00:45]} 55. Kxg5 {[%emt 0:00:06]} Rf2 {[%emt 0:02:25]} 56. a4 {[%emt 0:00:32]} Ra2 {[%emt 0:00:28]} 57. Rc4 {[%emt 0:01:51]} Ke6 {[%emt 0:01:14]} 58. Re4+ {[%emt 0:02:42]} Kd5 {[%emt 0:08:54]} 59. Rf4 {[%emt 0:00:11]} Kc6 {[%emt 0:01:28]} 60. Kf6 {[%emt 0:00:22]} Rb2 {[%emt 0:01:13]} 61. Rf5 {[%emt 0:03:33]} Kb6 {[%emt 0:00:32]} 62. Kg7 {[%emt 0:00:15]} Rb4 {[%emt 0:00:43]} 63. Rf6+ {[%emt 0:00:08]} Kc7 {[%emt 0:00:28]} 64. Kxf7 {[%emt 0:06:33]} Rxa4 {[%emt 0:00:31]} 65. Kg6 {[%emt 0:01:12]} Ra1 {[%emt 0:03:44]} 66. Kg5 {[%emt 0:02:24]} Rg1+ {[%emt 0:01:24]} 67. Kh4 {[%emt 0:00:10]} a4 {[%emt 0:02:40]} 68. Kh3 {[%emt 0:03:11]} Kb7 {[%emt 0:02:24]} 69. Rf4 {[%emt 0:02:12]} a3 {[%emt 0:01:48]} 70. Ra4 {[%emt 0:01:41]} Ra1 {[%emt 0:00:06]} 71. Kg2 {[%emt 0:01:27]} Kb6 {[%emt 0:00:17]} 72. Ra8 {[%emt 0:03:24]} Kb5 {[%emt 0:00:45]} 73. Kf3 {[%emt 0:03:31]} Kb4 {[%emt 0:00:09]} 74. Rb8+ {[%emt 0:00:22]} Kc3 {[%emt 0:00:23]} 75. Rc8+ {[%emt 0:04:14]} Kb2 {[%emt 0:00:09]} 76. Rb8+ {[%emt 0:00:04]} Ka2 {[%emt 0:01:00]} 77. Ke3 {[%emt 0:01:03]} Rb1 {[%emt 0:00:40]} 78. Rh8 {[%emt 0:01:34]} Rb4 {[%emt 0:06:31]} 79. Kd3 {[%emt 0:02:28]} Kb3 {[%emt 0:00:37]} 80. Ra8 {[%emt 0:01:45]} a2 {[%emt 0:00:20]} 0-1